[Event "Kezmarok Chess Open 2022"]
[Site "Kezmarok"]
[Date "2022.09.29"]
[Round "7.14"]
[White "Fizerova, Lucie"]
[Black "Belus, Benjamin"]
[Result "1-0"]
[ECO "A34"]
[WhiteElo "1779"]
[BlackElo "1932"]
[Annotator "TA"]
[PlyCount "60"]
[EventDate "2022.09.24"]
[EventType "swiss"]
[EventCountry "SVK"]
[SourceTitle "playchess.com"]
[Source "ChessBase"]
[SourceQuality "1"]
[TimeControl "40/5400+30:1800+30"]

{[%evp 14,60,0,0,0,0,0,0,43,48,104,85,106,-103,83,75,140,55,77,45,100,83,93,77,189,185,177,161,317,208,200,213,260,175,329,293,282,266,262,144,355,365,672,635,564,506,481,421,1005]} 1. c4 {[%emt 0:00:06]} c5 {[%emt 0:20:50]} 2. Nc3 {[%emt 0:00:11]} g6 {[%emt 0:00:02]} 3. g3 {[%emt 0:00:23]} Bg7 {[%emt 0:00:03]} 4. Bg2 {[%emt 0:00:07]} e6 {[%emt 0:00:08]} 5. e4 {[%emt 0:00:19]} Ne7 {[%emt 0:00:17]} 6. Nge2 {[%emt 0:00:19]} Nbc6 {[%emt 0:00:04]} 7. O-O {[%emt 0:00:31]} O-O {[%emt 0:00:02]} 8. a3 {[%emt 0:00:38]} b6 {[%emt 0:00:38] has lost popularity (8...d6). A36: Symmetrical English vs ...g6: 4 Bg2 Bg7.} 9. Rb1 {[%emt 0:00:43]} Bb7 {[%emt 0:00:41]} 10. b4 {[%emt 0:01:16]} cxb4 {[%emt 0:00:10] The position is equal.} 11. axb4 {[%emt 0:00:23]} Ne5 {[%emt 0:00:44]} ({Black should play} 11... d5 $14) 12. d3 $16 {[%emt 0:00:52]} d5 {[%emt 0:01:50]} 13. f4 $2 {[%emt 0:01:06] [#]} (13. exd5 $16 {Black must now prevent f4.} exd5 14. c5) 13... Ng4 $146 {[%emt 0:00:07]} (13... dxc4 $17 {stays on course.} 14. dxc4 (14. fxe5 cxd3 15. b5 Bxe5 $17) 14... Nxc4 15. Qxd8 Rfxd8) ({Predecessor:} 13... Nd7 14. cxd5 exd5 15. e5 Re8 16. d4 Nf8 17. b5 a6 18. Qb3 a5 19. Ba3 Ne6 {½-½ (41) Holmstrom,J (1894)-Kristensen,P (2018) Skorping 2017}) 14. h3 {[%emt 0:00:52]} Nh6 {[%emt 0:00:27]} (14... dxc4 $142 15. dxc4 Nf6) 15. g4 {[%emt 0:02:02]} (15. f5 $16 {And now f6 would win.} gxf5 16. exd5) 15... f5 {[%emt 0:05:48]} 16. g5 {[%emt 0:02:35]} Nf7 {[%emt 0:00:02]} ({Better is} 16... dxe4 $14 17. gxh6 Bxc3) 17. e5 {[%emt 0:01:03]} Qc8 {[%emt 0:00:53]} 18. Nd4 {[%emt 0:03:52]} Nxg5 {[%emt 0:07:17]} 19. fxg5 $18 {[%emt 0:01:46] Hoping for Ncb5.} Bxe5 {[%emt 0:00:01]} 20. Nce2 {[%emt 0:01:11]} Rb8 $2 {[%emt 0:07:24]} (20... Bg7 21. c5 e5) 21. Nf3 {[%emt 0:05:23]} Bg7 {[%emt 0:00:40]} 22. Bf4 {[%emt 0:00:32]} Ra8 {[%emt 0:01:37]} 23. Rc1 {[%emt 0:00:43]} Qe8 $2 {[%emt 0:05:11]} (23... dxc4 {was called for.} 24. Rxc4 (24. dxc4 Rd8 $18) 24... Qd8) 24. Ned4 {[%emt 0:04:00]} Nc6 {[%emt 0:01:52]} 25. Nb5 {[%emt 0:00:50]} Qd7 {[%emt 0:05:19]} 26. Re1 {[%emt 0:04:01]} ({White should try} 26. Nc7 $18) 26... Rae8 $2 {[%emt 0:06:59] Loses the game.} (26... Nxb4 $16 27. Bd6 a5 28. Bxf8 Rxf8) 27. Nd6 {[%emt 0:08:10]} Rd8 $2 {[%emt 0:00:03]} (27... Nxb4 28. Nxe8 Rxe8) 28. Nxb7 {[%emt 0:00:29] White is clearly winning.} Qxb7 {[%emt 0:00:02]} 29. Rxe6 {[%emt 0:01:29] [#] aiming for cxd5.} Nxb4 {[%emt 0:09:53]} 30. Qb3 {[%emt 0:04:08]} Qc8 {[%emt 0:05:06] Weighted Error Value: White=0.47/Black=0.77} (30... Qf7 $142 31. Rce1 a5) 1-0

[Event "Kezmarok Chess Open 2022"]
[Site "Kezmarok"]
[Date "2022.09.29"]
[Round "7.15"]
[White "Hagara, Eduard"]
[Black "Skapikova, Lubica"]
[Result "1/2-1/2"]
[ECO "C30"]
[WhiteElo "1734"]
[BlackElo "1823"]
[Annotator "NA RC COMBH"]
[PlyCount "59"]
[EventDate "2022.09.24"]
[EventType "swiss"]
[EventCountry "SVK"]
[SourceTitle "playchess.com"]
[Source "ChessBase"]
[SourceQuality "1"]
[TimeControl "40/5400+30:1800+30"]

1. e4 {[%emt 0:05:01]} e5 {[%emt 0:00:07]} 2. f4 {[%emt 0:00:22]} d6 {[%emt 0:00:16]} 3. Nf3 {[%emt 0:00:56]} Nc6 {[%emt 0:00:05]} 4. Bc4 {[%emt 0:01:04]} Be7 {[%emt 0:00:21]} 5. O-O {[%emt 0:00:54]} Nf6 {[%emt 0:00:28]} 6. d3 {[%emt 0:02:21]} O-O {[%emt 0:01:09]} 7. c3 {[%emt 0:00:41]} exf4 {[%emt 0:00:20]} 8. Bxf4 {[%emt 0:01:35]} Na5 {[%emt 0:03:04]} 9. Bb5 {[%emt 0:00:56]} c6 {[%emt 0:00:04]} 10. Ba4 {[%emt 0:00:13]} Qb6+ {[%emt 0:01:38]} 11. Kh1 {[%emt 0:16:30]} Qxb2 {[%emt 0:02:10]} 12. Nbd2 {[%emt 0:01:07]} Qb6 {[%emt 0:01:56]} 13. h3 {[%emt 0:03:13]} h6 {[%emt 0:00:57]} 14. Qe2 {[%emt 0:03:27]} Qd8 {[%emt 0:00:21]} 15. Rae1 {[%emt 0:02:53]} b5 {[%emt 0:01:16]} 16. Bc2 {[%emt 0:00:27]} c5 {[%emt 0:08:39]} 17. Bh2 {[%emt 0:05:22]} Nc6 {[%emt 0:06:47]} 18. Nb3 {[%emt 0:12:22]} b4 {[%emt 0:04:28]} 19. cxb4 {[%emt 0:06:52]} Nxb4 {[%emt 0:00:30]} 20. Bb1 {[%emt 0:00:17]} a5 {[%emt 0:04:08]} 21. a3 {[%emt 0:01:51]} Nc6 {[%emt 0:00:22]} 22. Nbd2 {[%emt 0:02:34]} Ba6 {[%emt 0:01:18]} 23. Ba2 {[%emt 0:00:54]} Nh7 {[%emt 0:13:23]} 24. Nc4 {[%emt 0:01:07]} Bxc4 {[%emt 0:00:26]} 25. Bxc4 {[%emt 0:00:16]} Ng5 {[%emt 0:00:16]} 26. Bd5 {[%emt 0:04:41]} Nxf3 {[%emt 0:00:46]} 27. Qxf3 {[%emt 0:01:13]} Nd4 {[%emt 0:01:10]} 28. Qh5 {[%emt 0:00:35]} Rb8 {[%emt 0:04:10]} 29. Rxf7 {[%emt 0:04:19]} Rxf7 {[%emt 0:00:07]} 30. Qxf7+ {[%emt 0:00:23]} 1/2-1/2

[Event "Kezmarok Chess Open 2022"]
[Site "Kezmarok"]
[Date "2022.09.29"]
[Round "7.16"]
[White "Kapolkova, Greta"]
[Black "Horbalova, Ivana"]
[Result "1-0"]
[ECO "B40"]
[WhiteElo "1723"]
[BlackElo "1286"]
[Annotator "NA RC COMBH"]
[PlyCount "41"]
[EventDate "2022.09.24"]
[EventType "swiss"]
[EventCountry "SVK"]
[SourceTitle "playchess.com"]
[Source "ChessBase"]
[SourceQuality "1"]
[TimeControl "40/5400+30:1800+30"]

1. e4 e6 2. d4 c5 3. Nf3 d5 4. dxc5 dxe4 5. Qxd8+ Kxd8 6. Ng5 Nh6 7. Nxe4 f5 8. Nd6 Kc7 9. Bf4 Bxd6 10. cxd6+ Kc6 11. Nc3 a6 12. O-O-O Nd7 13. g3 e5 14. Bg2+ e4 15. f3 {[%emt 0:47:30]} Nf7 {[%emt 0:24:00]} 16. fxe4 {[%emt 0:00:38]} fxe4 {[%emt 0:01:44]} 17. Bxe4+ {[%emt 0:00:30]} Kb6 {[%emt 0:01:28]} 18. Be3+ {[%emt 0:00:42]} Ka5 {[%emt 0:00:30]} 19. a3 {[%emt 0:00:30]} Nc5 {[%emt 0:02:04]} 20. b4+ {[%emt 0:00:30]} Kb6 {[%emt 0:00:30]} 21. Bxc5# {[%emt 0:00:30]} 1-0

[Event "Kezmarok Chess Open 2022"]
[Site "Kezmarok"]
[Date "2022.09.29"]
[Round "7.17"]
[White "Kolek, Stefan"]
[Black "Mazak, Ryan"]
[Result "0-1"]
[ECO "B01"]
[WhiteElo "1524"]
[BlackElo "1590"]
[Annotator "NA RC COMBH"]
[PlyCount "53"]
[EventDate "2022.09.24"]
[EventType "swiss"]
[EventCountry "SVK"]
[SourceTitle "playchess.com"]
[Source "ChessBase"]
[SourceQuality "1"]
[TimeControl "40/5400+30:1800+30"]

1. e4 {[%emt 0:00:22]} d5 {[%emt 0:00:12]} 2. exd5 {[%emt 0:00:18]} Nf6 {[%emt 0:00:11]} 3. c4 {[%emt 0:00:08]} e6 {[%emt 0:00:08]} 4. dxe6 {[%emt 0:00:05]} Bxe6 {[%emt 0:00:12]} 5. d3 {[%emt 0:00:39]} Nc6 {[%emt 0:02:21]} 6. Nf3 {[%emt 0:00:05]} Bb4+ {[%emt 0:02:51]} 7. Nc3 {[%emt 0:00:06]} Qe7 {[%emt 0:01:12]} 8. Be2 {[%emt 0:00:16]} O-O-O {[%emt 0:03:21]} 9. O-O {[%emt 0:00:13]} Bxc4 {[%emt 0:02:25]} 10. a3 {[%emt 0:00:13]} Bc5 {[%emt 0:13:00]} 11. Qc2 {[%emt 0:00:31]} Be6 {[%emt 0:04:18]} 12. Bg5 {[%emt 0:00:09]} h6 {[%emt 0:07:20]} 13. Bh4 {[%emt 0:00:10]} g5 {[%emt 0:01:59]} 14. Bg3 {[%emt 0:00:03]} g4 {[%emt 0:02:12]} 15. Ne5 {[%emt 0:01:59]} Nd4 {[%emt 0:03:42]} 16. Qa4 {[%emt 0:00:05]} Nd5 {[%emt 0:11:20]} 17. Bd1 {[%emt 0:01:43]} h5 {[%emt 0:02:22]} 18. Nxd5 {[%emt 0:03:39]} Bxd5 {[%emt 0:03:20]} 19. b4 b5 {[%emt 0:06:31]} 20. Bxg4+ {[%emt 0:05:41]} hxg4 {[%emt 0:00:16]} 21. Qd1 {[%emt 0:00:00]} Bb6 {[%emt 0:08:00]} 22. Qxg4+ Be6 23. Qe4 {[%emt 0:01:34]} Bd5 {[%emt 0:06:00]} 24. Qg4+ {[%emt 0:00:02]} f5 {[%emt 0:01:08]} 25. Qd1 {[%emt 0:00:52]} Rdg8 {[%emt 0:01:28]} 26. Re1 {[%emt 0:00:30]} Qg5 {[%emt 0:02:15]} 27. h4 {[%emt 0:04:03]} 0-1

[Event "Kezmarok Chess Open 2022"]
[Site "Kezmarok"]
[Date "2022.09.30"]
[Round "8.1"]
[White "Dubessay, Bastien"]
[Black "Demeter, Peter"]
[Result "1/2-1/2"]
[ECO "E61"]
[WhiteElo "2259"]
[BlackElo "2067"]
[Annotator "TA"]
[PlyCount "94"]
[EventDate "2022.09.24"]
[EventType "swiss"]
[EventCountry "SVK"]
[SourceTitle "playchess.com"]
[Source "ChessBase"]
[SourceQuality "1"]
[TimeControl "40/5400+30:1800+30"]

{[%evp 17,94,45,42,36,37,29,48,47,61,54,84,93,88,91,92,86,89,84,84,83,98,98,263,264,268,269,260,231,206,165,193,-25,-29,-21,-37,-38,-18,-79,-77,-80,0,0,0,0,70,102,68,28,31,8,113,94,116,120,128,89,145,132,155,0,0,0,164,0,0,0,0,0,152,-29955,-5410,-2609,0,0,0,0,377,392,29998]} 1. d4 {[%emt 0:00:05]} Nf6 {[%emt 0:00:06]} 2. c4 {[%emt 0:00:21]} g6 3. Nc3 Bg7 {[%emt 0:00:48]} 4. Nf3 {[%emt 0:01:12]} d6 {[%emt 0:00:10]} 5. Bg5 {[%emt 0:00:12]} h6 {[%emt 0:00:14]} 6. Bh4 {[%emt 0:00:29]} Nbd7 {[%emt 0:00:59]} 7. e3 {[%emt 0:00:29]} O-O {[%emt 0:02:22]} 8. Be2 {[%emt 0:01:54]} c6 {[%emt 0:04:37]} 9. Qc2 {[%emt 0:02:43] was the old line (9.0-0).} a6 {[%emt 0:06:36] was the old line (9...e5).} 10. Nd2 {[%emt 0:05:39][%cal Bf3d2,Bd2c4,Bc4b6][%mdl 32] E61: King's Indian: Early deviations for White, including Smyslov System.} Re8 {[%emt 0:04:48]} 11. O-O {[%emt 0:01:17] [#]} Nf8 $146 {[%emt 0:01:12]} ({Predecessor:} 11... Rb8 12. b4 Nf8 13. Rad1 Bd7 14. c5 d5 15. f3 Ra8 16. e4 dxe4 17. fxe4 g5 {0-1 (42) Goecke,K (2203)-Lucas,M (2086) Werther 2013}) 12. Rad1 {[%emt 0:04:58] White is slightly better.} Qc7 {[%emt 0:07:32]} 13. Bg3 {[%emt 0:01:24]} Qb6 {[%emt 0:05:01]} 14. c5 {[%emt 0:13:12]} Qd8 {[%emt 0:06:25]} 15. Nc4 {[%emt 0:06:48][%cal Rc5d6]} d5 {[%emt 0:01:58]} 16. Nb6 {[%emt 0:00:09]} Bf5 {[%emt 0:01:12] Against e4} 17. Qb3 {[%emt 0:04:40] White has more active pieces. The black rooks are badly placed.} Ra7 {[%emt 0:00:10]} 18. f3 {[%emt 0:00:12]} N8d7 {[%emt 0:14:09]} 19. e4 {[%emt 0:13:55]} dxe4 {[%emt 0:11:59]} (19... Be6 $16) 20. fxe4 $18 {[%emt 0:00:08]} Be6 {[%emt 0:01:16]} 21. d5 {[%emt 0:03:31]} cxd5 {[%emt 0:00:16]} 22. exd5 {[%emt 0:00:06]} Bf5 {[%emt 0:01:18]} 23. Nca4 {[%emt 0:07:57] Threatens to win with c6.} Ne4 {[%emt 0:06:39]} 24. c6 {[%emt 0:09:17]} (24. Nxd7 $1 $18 Qxd7 25. Bf4) 24... Nxg3 $11 {[%emt 0:00:33]} 25. Qxg3 {[%emt 0:00:31] aiming for c7.} Ne5 $1 {[%emt 0:04:47]} (25... Nxb6 $2 26. c7 Qd6 27. Qxd6 exd6 28. Nxb6 $18) 26. Qf2 {[%emt 0:02:17][%cal Ob6d7] And now Nd7! would win.} bxc6 {[%emt 0:04:04]} 27. dxc6 {[%emt 0:04:17]} (27. Nc4 $1 $11 {remains equal.} Qb8 28. Nxe5 Bxe5 29. dxc6) 27... Qb8 $17 {[%emt 0:02:49]} 28. Qc5 {[%emt 0:08:14]} Rc7 {[%emt 0:01:16]} (28... Be6 $17) 29. Nd5 $36 {[%emt 0:00:38][%mdl 2048] White has good play. Pair of Knights!} Rxc6 {[%emt 0:05:14]} 30. Nxe7+ {[%emt 0:00:04]} Kh7 {[%emt 0:01:18]} (30... Rxe7 $11 31. Qxe7 Bf6) 31. Nxc6 $14 {[%emt 0:00:10]} Nxc6 {[%emt 0:00:20]} 32. Bxa6 {[%emt 0:06:29][%cal Be2a6,Ba6d3,Bd3f5][%mdl 32]} (32. Qxc6 Rxe2 33. Qf3 (33. Qxa6 Rc2 $17) 33... Qe8 $11) 32... Ne5 {[%emt 0:00:20]} 33. h3 {[%emt 0:01:41] Against Ng4. White wants to play b3.} (33. Rxf5 $5 gxf5 34. Kh1 $16) 33... h5 {[%emt 0:02:12]} (33... Re6 $1 $11 34. Be2 Rc6) 34. b3 {[%emt 0:00:18]} Qa8 {[%emt 0:02:23] [#]} 35. Rxf5 $1 {[%emt 0:01:49]} gxf5 {[%emt 0:00:23]} 36. Bd3 {[%emt 0:00:03]} Kg8 {[%emt 0:00:51]} (36... Nxd3 $142 37. Qxf5+ Kg8 38. Qxd3 Qa5) 37. Bxf5 $16 {[%emt 0:00:15]} Qb8 {[%emt 0:00:45][%cal Oe5f3]} 38. Nc3 $2 {[%emt 0:00:42]} (38. Kh1 $16) 38... Nf3+ $1 $11 {[%emt 0:01:21]} 39. Kf2 {[%emt 0:00:26]} (39. Kf1 $2 Bd4 $1 {[%mdl 512]} 40. Qxd4 Nxd4 $19) 39... h4 $2 {[%emt 0:00:43]} 40. Qd6 $2 {[%emt 0:00:50]} (40. gxf3 Qh2+ 41. Kf1 Qh1+ 42. Qg1 Qxf3+ 43. Qf2 Qh1+ 44. Qg1 Qf3+ 45. Qf2 Qh1+ 46. Qg1 Qf3+ $11) (40. Ne2 $18 Bf8 41. Qc2) 40... Qa7+ {[%emt 0:00:53]} 41. Kxf3 {[%emt 0:30:09]} Qe3+ {[%emt 0:03:36]} (41... Bxc3 $2 42. Be4 $18 (42. Qh6 Bg7 $14)) 42. Kg4 {[%emt 0:00:00] Rd3 is the strong threat.} Be5 $2 {[%emt 0:04:09]} (42... Bxc3 $11 43. Rd3 Qe2+ 44. Kg5 (44. Kxh4 Be5 $11) 44... Qxg2+ 45. Kxh4 Be5) 43. Qd7 $2 {[%emt 0:00:00] [#]} (43. Qd2 $16 Qg3+ 44. Kh5 Bxc3 45. Qh6) 43... Kg7 $1 {[%emt 0:03:57] ( -> ...Qg3+)} 44. Bh7 {[%emt 0:00:00]} (44. Qxf7+ Kxf7) 44... Qf4+ $2 {[%emt 0:04:05]} ({Weaker is} 44... Bxc3 45. Qd3 Qe5 46. Qf3 $17 (46. Bf5 Rb8 $17)) ({And not} 44... Rh8 45. Nd5 Qg3+ 46. Kf5 Rxh7 47. Ke4 Qxg2+ 48. Ke3 $11) (44... Rg8 $19 45. Qxf7+ Kxf7+ 46. Bxg8+ Kg6 47. Bh7+ Kxh7) 45. Kh5 {[%emt 0:00:00] Black must now prevent Rf1.} Qh6+ {[%emt 0:01:25]} 46. Kg4 {[%emt 0:00:00] Strongly threatening Rf1.} Rh8 $2 {[%mdl 8192]} (46... Qf4+ $11 {and Black is okay.} 47. Kh5 Kxh7 48. Qxe8 Qh6+ 49. Kg4 Qf4+ 50. Kh5 Qh6+ 51. Kg4 Qf4+ 52. Kh5) 47. Rf1 $18 {[%csl Gf1][%cal Rd7f7]} Qe3 $2 {[%mdl 32768] What a fight!  Weighted Error Value: White=0.56/Black=0.45. An unexpected result.} (47... Qe6+ $18 48. Qxe6 fxe6) 1/2-1/2

[Event "Kezmarok Chess Open 2022"]
[Site "Kezmarok"]
[Date "2022.09.30"]
[Round "8.3"]
[White "Hagarova, Zuzana"]
[Black "Bazakutsa, Svyatoslav"]
[Result "1/2-1/2"]
[ECO "B13"]
[WhiteElo "2287"]
[BlackElo "2182"]
[Annotator "TA"]
[PlyCount "87"]
[EventDate "2022.09.24"]
[EventType "swiss"]
[EventCountry "SVK"]
[SourceTitle "playchess.com"]
[Source "ChessBase"]
[SourceQuality "1"]
[TimeControl "40/5400+30:1800+30"]

{[%evp 20,87,-16,-21,0,-7,-10,-12,-8,-11,-15,-25,0,0,0,0,0,-6,-3,-32,-27,-16,-34,-40,-20,-10,-46,-39,-41,-104,-78,-85,0,-175,-181,-179,-72,-98,-83,-117,-92,-80,-44,-111,-62,-56,0,0,0,0,0,0,0,0,0,0,0,0,0,0,217,0,0,0,0,0,0,0,0,0]} 1. e4 {[%emt 0:01:50]} c6 {[%emt 0:00:05]} 2. d4 {[%emt 0:00:26]} d5 {[%emt 0:00:04]} 3. exd5 {[%emt 0:00:04]} cxd5 {[%emt 0:00:04]} 4. c4 {[%emt 0:00:12]} Nf6 {[%emt 0:00:03]} 5. Nc3 {[%emt 0:00:10]} Nc6 {[%emt 0:00:06]} 6. Nf3 {[%emt 0:02:55]} g6 {[%emt 0:00:06]} 7. cxd5 {[%emt 0:03:02]} Nxd5 {[%emt 0:00:04]} 8. Qb3 {[%emt 0:01:26]} Nxc3 {[%emt 0:00:12]} 9. bxc3 {[%emt 0:00:38]} Bg7 {[%emt 0:01:08]} 10. Be2 {[%emt 0:06:51]} O-O {[%emt 0:01:06]} 11. Bf4 {[%emt 0:04:29]} Na5 {[%emt 0:02:53] A35: Symmetrical English: 2 Nc3 Nc6 3 Nf3.} 12. Qb4 {[%emt 0:03:23]} b6 {[%emt 0:02:40]} 13. O-O {[%emt 0:01:51]} Bb7 {[%emt 0:00:34]} 14. Rfe1 {[%emt 0:03:32]} e6 {[%emt 0:08:26]} 15. Rad1 {[%emt 0:06:00] [#]} Qd5 $146 {[%emt 0:21:40]} ({Predecessor:} 15... Rc8 16. Bd6 Re8 17. Bb5 Bxf3 18. gxf3 Nc6 19. Bxc6 Rxc6 20. Bg3 Qd5 21. Qa4 a5 {1-0 (56) Slisser,T (2220)-Meis,E (2117) Dieren 2002}) 16. c4 {[%emt 0:13:41]} Qe4 {[%emt 0:02:58]} 17. Qd2 {[%emt 0:05:43]} Rfd8 {[%emt 0:06:48][%cal Od8d4]} 18. Bf1 {[%emt 0:04:28]} Qc6 {[%emt 0:00:57]} 19. Bh6 {[%emt 0:10:52] Black must now prevent Bxg7.} Nxc4 {[%emt 0:29:56]} 20. Qf4 {[%emt 0:01:34] aiming for Bxg7.} Rd5 {[%emt 0:02:05]} 21. Bxg7 {[%emt 0:11:58]} (21. Ng5 Rf5 22. Qh4 Bf6 $19) 21... Kxg7 {[%emt 0:00:16]} 22. Bxc4 {[%emt 0:01:00]} Qxc4 {[%emt 0:00:06]} 23. Rc1 {[%emt 0:00:34]} Qb4 {[%emt 0:00:42] Strongly threatening ...Rf5.} 24. Ne5 {[%emt 0:08:20]} (24. Rc7 Rf5 25. Qd2 Qxd2 26. Nxd2 Bd5 $17) (24. Qc7 $15 Ba6 25. Ne5) 24... Qe7 {[%emt 0:06:11]} 25. Rc3 {[%emt 0:01:31] [#]} Rad8 {[%emt 0:01:16]} (25... Rc8 $1 $17 {[%cal Rc8c3]} 26. Rxc8 (26. Rh3 $2 h5 $19) 26... Bxc8) 26. Rd1 $2 {[%emt 0:04:58]} (26. Qc1 $1 $11 {and White has nothing to worry.}) 26... h5 {[%emt 0:06:50]} 27. h4 {[%emt 0:00:38]} Rc8 {[%emt 0:00:36]} (27... f6 $19 {has better winning chances.} 28. Nf3 R5d6) 28. Rdc1 {[%emt 0:00:37]} Rdd8 {[%emt 0:01:17]} 29. R1c2 {[%emt 0:01:45]} Rxc3 {[%emt 0:03:49]} 30. Rxc3 {[%emt 0:00:03]} Rf8 {[%emt 0:00:02]} 31. g3 {[%emt 0:00:57]} ({White should try} 31. Qc1 $15 Qxh4 32. Rc7 Qxd4 33. Qg5) 31... Qb4 {[%emt 0:01:25]} (31... Rc8 $17 32. Rxc8 Bxc8) 32. Rc1 $15 {[%emt 0:00:31]} Qb5 {[%emt 0:00:12] Inhibits Nd7.} (32... Qd6 $1 $15) 33. f3 $11 {[%emt 0:00:23] Rc7 is the strong threat.} Kg8 {[%emt 0:01:07]} 34. Rc7 $36 {[%emt 0:00:30][%cal Re5f7][%mdl 2048] White is more active.} Qb1+ {[%emt 0:00:02]} 35. Kg2 {[%emt 0:00:18][%cal Re5f7]} Qxa2+ {[%emt 0:00:08]} 36. Kg1 {[%emt 0:00:25][%cal Re5f7]} (36. Kh3 $2 Ba6 37. Rc1 Qf2 $19) 36... Qb1+ {[%emt 0:00:21]} 37. Kh2 {[%cal Re5f7]} Qb2+ {[%emt 0:01:19]} 38. Kh1 {[%emt 0:00:41][%cal Re5f7]} (38. Kh3 $2 Ba6 39. Rc1 Qf2 $19) 38... Qb1+ {[%emt 0:00:30]} 39. Kh2 {[%cal Re5f7] Active counter play!} Ba6 $2 {[%emt 0:01:13]} (39... Qb2+ $11 {and Black is okay.} 40. Kh1 (40. Kh3 $2 Ba6 $19) 40... Qb1+ 41. Kh2) 40. Rxf7 $2 {[%emt 0:00:41] The board is on fire.} (40. Nxf7 $18 {Threatening mate with Nh6+.} Qb2+ 41. Kg1 Qb1+ 42. Rc1 Rxf7 43. Qb8+ (43. Rxb1 Rxf4 44. gxf4 Bb7 $18) 43... Rf8 44. Qxf8+ (44. Rxb1 $2 {is the wrong capture.} Rxb8 45. Kf2 Bb7 $19) 44... Kxf8 45. Rxb1) 40... Rc8 {[%emt 0:00:09] The position is equal.} 41. Rg7+ $1 {[%emt 0:02:00][%mdl 64] [#] Decoy} Kxg7 {[%emt 0:00:00]} 42. Qf7+ {[%emt 0:00:08]} Kh6 {[%emt 0:00:00]} 43. Qf4+ {[%emt 0:00:08]} Kg7 {[%emt 0:00:05] ( -> ...Rc2+)} 44. Qf7+ {[%emt 0:00:06] And White is the lucky defender.  Weighted Error Value: White=0.20 (precise) /Black=0.22 (precise)} 1/2-1/2

[Event "Kezmarok Chess Open 2022"]
[Site "Kezmarok"]
[Date "2022.09.30"]
[Round "8.4"]
[White "Jablonicky, Martin"]
[Black "Striskova, Lucia"]
[Result "1-0"]
[ECO "A05"]
[WhiteElo "2344"]
[BlackElo "1866"]
[Annotator "TA"]
[PlyCount "39"]
[EventDate "2022.09.24"]
[EventType "swiss"]
[EventCountry "SVK"]
[SourceTitle "playchess.com"]
[Source "ChessBase"]
[SourceQuality "1"]
[TimeControl "40/5400+30:1800+30"]

{[%evp 12,39,33,29,37,26,59,63,77,54,66,51,102,118,118,60,62,58,88,81,89,72,99,103,111,90,105,105,670,659]} 1. Nf3 {[%emt 0:15:32]} Nf6 {[%emt 0:00:36]} 2. b3 {[%emt 0:00:05]} g6 {[%emt 0:00:15]} 3. Bb2 {[%emt 0:00:05]} Bg7 {[%emt 0:00:14]} 4. g3 {[%emt 0:00:06]} O-O {[%emt 0:01:45]} 5. Bg2 {[%emt 0:00:04]} c5 {[%emt 0:00:41]} 6. c4 {[%emt 0:00:16]} Nc6 {[%emt 0:01:06]} 7. O-O {[%emt 0:00:07]} e6 {[%emt 0:02:28] A30: Symmetrical English: Double Fianchetto and Hedgehog.} 8. d4 {[%emt 0:09:16]} d5 {[%emt 0:04:32]} 9. dxc5 {[%emt 0:00:52]} dxc4 {[%emt 0:00:10] [#] White is slightly better.} 10. Na3 $146 {[%emt 0:00:46]} ({Predecessor:} 10. Nbd2 Qe7 11. Nxc4 Rd8 12. Qc1 Qxc5 13. Nfe5 Nxe5 14. Bxe5 Nd5 15. Bxg7 Kxg7 16. Rd1 {1-0 (78) Neef,M (2451)-Aakanksha,H (2328) Barcelona 2017}) 10... cxb3 {[%emt 0:01:48]} 11. axb3 {[%emt 0:00:06]} Nd5 {[%emt 0:07:07]} (11... Qe7 $14) 12. Bxg7 $16 {[%emt 0:00:15]} Kxg7 {[%emt 0:00:04]} 13. Qd2 {[%emt 0:07:59]} (13. Nc4 $16) 13... b6 {[%emt 0:02:47]} 14. Nd4 {[%emt 0:07:22]} Bb7 {[%emt 0:04:26]} 15. Nxc6 {[%emt 0:00:56]} Bxc6 {[%emt 0:00:18]} 16. Rfc1 {[%emt 0:00:59] Threatens to win with Qd4+.} bxc5 {[%emt 0:05:57]} 17. Rxc5 {[%emt 0:00:07]} Rc8 {[%emt 0:07:52]} 18. Rac1 {[%emt 0:00:20]} Qd7 {[%emt 0:01:53]} 19. Bxd5 {[%emt 0:02:55] White is more active.} Bxd5 $4 {[%emt 0:01:22][%mdl 8192] [#]} (19... exd5 $16 20. Nc2 Bb7) 20. Qc3+ {[%emt 0:00:10] Weighted Error Value: White=0.10 (very precise) /Black=0.50} 1-0

[Event "Kezmarok Chess Open 2022"]
[Site "Kezmarok"]
[Date "2022.09.30"]
[Round "8.5"]
[White "Wisniewski, Michal"]
[Black "Kovac, Lubomir"]
[Result "1-0"]
[ECO "A05"]
[WhiteElo "2152"]
[BlackElo "2091"]
[Annotator "TA"]
[PlyCount "63"]
[EventDate "2022.09.24"]
[EventType "swiss"]
[EventCountry "SVK"]
[SourceTitle "playchess.com"]
[Source "ChessBase"]
[SourceQuality "1"]
[TimeControl "40/5400+30:1800+30"]

{[%evp 18,63,43,12,16,12,25,17,32,22,74,12,33,38,76,76,71,73,73,77,76,72,94,99,95,98,99,87,102,100,104,100,97,97,106,105,113,117,225,222,267,272,553,545,545,537,610,462]} 1. Nf3 Nf6 2. c4 c6 3. g3 d5 4. Bg2 Bf5 5. cxd5 cxd5 6. Qb3 Qb6 7. Qxb6 axb6 8. Nc3 Nc6 9. d3 e6 10. Bf4 Be7 {A11: English Opening: 1...c6.} 11. O-O O-O 12. Nb5 {[#]} Ra5 $146 {The position is equal.} ({Predecessor:} 12... Rfc8 13. a3 Na5 14. Nfd4 Bg6 15. Bh3 Nc6 16. Rfc1 Bc5 17. Nf3 Ra5 18. Nd6 Bxd6 19. Bxd6 {½-½ (85) Shuvalov,E (2182)-Odegov,A (2286) Chess.com INT 2022}) 13. Nbd4 Bg6 (13... Bg4 $11 {keeps the balance.}) 14. a3 (14. Rfc1 $16) 14... Nxd4 15. Nxd4 {[%cal Bf3d4,Bd4b5,Bb5a7,Ba7c8,Bc8d6][%mdl 32]} Rc5 16. b4 Rc3 17. Rfc1 Rfc8 18. Nb5 Rxc1+ 19. Rxc1 Rc6 20. Na7 Rxc1+ 21. Bxc1 Nd7 22. Nc8 Kf8 23. Be3 Bd8 24. Nd6 Bc7 25. Nxb7 {White is much more active.} Nb8 26. a4 Nc6 27. b5 d4 (27... Ne7 $16 28. Bd4 f6) 28. Bd2 $18 ({Much less strong is} 28. Bxc6 $6 dxe3 29. fxe3 Ke7 $16) 28... Na7 29. Bb4+ Kg8 $2 (29... Ke8 30. Nd6+ Kd8) 30. Bd6 {White is clearly winning.} Bxd6 31. Nxd6 {[#] Strongly threatening Nc4.} Kf8 32. a5 {Weighted Error Value: White=0.08 (flawless) /Black=0.31} 1-0